[Event "Early-Titled-Tuesday-Blitz-February-20-2024"]
[Site "Chess.com"]
[Date "2024.02.20"]
[Round "1"]
[White "Hudijegszid"]
[Black "Aslanov_Umid"]
[Result "0-1"]
[WhiteElo "2326"]
[BlackElo "2667"]
[TimeControl "180+1"]
[EndTime "8:07:16 PST"]
[Termination "Aslanov_Umid won by checkmate"]

1. Nf3 {[%clk 0:03:00.9]} 1... d5 {[%clk 0:03:00.2]} 2. g3 {[%clk 0:02:59.8]}
2... c6 {[%clk 0:03:00.5]} 3. Bg2 {[%clk 0:03:00.2]} 3... Nf6 {[%clk 0:03:01.2]}
4. O-O {[%clk 0:03:00.4]} 4... Bg4 {[%clk 0:03:01.9]} 5. d4 {[%clk 0:03:00.3]}
5... Nbd7 {[%clk 0:03:02.6]} 6. c4 {[%clk 0:02:59.3]} 6... e6 {[%clk 0:03:03.2]}
7. h3 {[%clk 0:02:59.4]} 7... Bh5 {[%clk 0:03:02.9]} 8. Qb3 {[%clk 0:02:59.5]}
8... Qb6 {[%clk 0:03:01.5]} 9. Nc3 {[%clk 0:02:59.7]} 9... Be7 {[%clk
0:02:54.6]} 10. Nh4 {[%clk 0:02:56.7]} 10... O-O {[%clk 0:02:48.8]} 11. g4
{[%clk 0:02:56.7]} 11... Bg6 {[%clk 0:02:49.1]} 12. Nxg6 {[%clk 0:02:56.9]}
12... hxg6 {[%clk 0:02:50]} 13. Rd1 {[%clk 0:02:57.1]} 13... dxc4 {[%clk
0:02:39.2]} 14. Qxc4 {[%clk 0:02:54]} 14... Rac8 {[%clk 0:02:36.3]} 15. e4
{[%clk 0:02:53.4]} 15... e5 {[%clk 0:02:35.9]} 16. Be3 {[%clk 0:02:44.9]} 16...
exd4 {[%clk 0:02:28.1]} 17. Bxd4 {[%clk 0:02:45.8]} 17... c5 {[%clk 0:02:28.7]}
18. Be3 {[%clk 0:02:44.2]} 18... Ne5 {[%clk 0:02:29.1]} 19. Qe2 {[%clk
0:02:43.3]} 19... Rfd8 {[%clk 0:02:12.3]} 20. f4 {[%clk 0:02:42.6]} 20... Nc6
{[%clk 0:02:12.3]} 21. e5 {[%clk 0:02:42]} 21... Nd4 {[%clk 0:02:10.4]} 22. Bxd4
{[%clk 0:02:19.8]} 22... cxd4 {[%clk 0:02:08.8]} 23. Na4 {[%clk 0:02:20.1]}
23... Qe6 {[%clk 0:02:06.4]} 24. f5 {[%clk 0:02:06.7]} 24... gxf5 {[%clk
0:02:03.2]} 25. gxf5 {[%clk 0:02:07.6]} 25... Qxf5 {[%clk 0:02:03.8]} 26. exf6
{[%clk 0:02:07.7]} 26... Bxf6 {[%clk 0:02:04.7]} 27. Qd3 {[%clk 0:02:02.4]}
27... Qa5 {[%clk 0:01:58.1]} 28. b3 {[%clk 0:01:55.5]} 28... b5 {[%clk
0:01:58.5]} 29. Nb2 {[%clk 0:01:52.8]} 29... Rc3 {[%clk 0:01:58.5]} 30. Qd2
{[%clk 0:01:47.7]} 30... Qb6 {[%clk 0:01:57.5]} 31. Nd3 {[%clk 0:01:47.4]} 31...
Rdc8 {[%clk 0:01:47.5]} 32. Rac1 {[%clk 0:01:45.3]} 32... Qd6 {[%clk 0:01:38.1]}
33. b4 {[%clk 0:01:12]} 33... Qg3 {[%clk 0:01:31.2]} 34. Nc5 {[%clk 0:01:04.4]}
34... Bg5 {[%clk 0:00:46.5]} 35. Rxc3 {[%clk 0:01:02.3]} 35... dxc3 {[%clk
0:00:46.8]} 36. Qc2 {[%clk 0:00:33.4]} 36... Be3+ {[%clk 0:00:42]} 37. Kh1
{[%clk 0:00:33.5]} 37... Bf4 {[%clk 0:00:38.6]} 38. Kg1 {[%clk 0:00:25.4]} 38...
Qh2+ {[%clk 0:00:29.5]} 39. Kf1 {[%clk 0:00:24.9]} 39... Be3 {[%clk 0:00:25.3]}
40. Qxc3 {[%clk 0:00:13.6]} 40... Qg1+ {[%clk 0:00:25.2]} 41. Ke2 {[%clk
0:00:14]} 41... Qf2+ {[%clk 0:00:26.1]} 42. Kd3 {[%clk 0:00:13.9]} 42... Rd8+
{[%clk 0:00:26.9]} 43. Ke4 {[%clk 0:00:11.7]} 43... Qf4# {[%clk 0:00:25.6]} 0-1

[Event "Early-Titled-Tuesday-Blitz-February-20-2024"]
[Site "Chess.com"]
[Date "2024.02.20"]
[Round "1"]
[White "Der_Balak_3Halak"]
[Black "CSB7"]
[Result "0-1"]
[WhiteElo "2440"]
[BlackElo "2777"]
[TimeControl "180+1"]
[EndTime "8:07:17 PST"]
[Termination "CSB7 won by resignation"]

1. e4 {[%clk 0:03:00.9]} 1... e6 {[%clk 0:02:59.3]} 2. d4 {[%clk 0:03:00.5]}
2... d5 {[%clk 0:02:59.9]} 3. exd5 {[%clk 0:03:01.4]} 3... exd5 {[%clk
0:02:57.8]} 4. Bd3 {[%clk 0:02:58.9]} 4... c5 {[%clk 0:02:52.7]} 5. dxc5 {[%clk
0:02:54.6]} 5... Bxc5 {[%clk 0:02:53.6]} 6. Nf3 {[%clk 0:02:52.4]} 6... Nf6
{[%clk 0:02:53.9]} 7. O-O {[%clk 0:02:51.3]} 7... O-O {[%clk 0:02:53.9]} 8. Bg5
{[%clk 0:02:51.5]} 8... h6 {[%clk 0:02:49.2]} 9. Bh4 {[%clk 0:02:50.6]} 9... Nc6
{[%clk 0:02:35.5]} 10. Nc3 {[%clk 0:02:48.3]} 10... Bg4 {[%clk 0:01:59]} 11.
Nxd5 {[%clk 0:02:07.6]} 11... Qxd5 {[%clk 0:01:37.4]} 12. Bxf6 {[%clk
0:02:06.2]} 12... Bxf3 {[%clk 0:01:38]} 13. gxf3 {[%clk 0:02:01.2]} 13... Qh5
{[%clk 0:01:32.8]} 14. Bc3 {[%clk 0:01:46.2]} 14... Qh4 {[%clk 0:00:57.3]} 15.
Qe2 {[%clk 0:01:33.6]} 15... Bd6 {[%clk 0:00:50.6]} 16. f4 {[%clk 0:01:25.3]}
16... Bxf4 {[%clk 0:00:37.4]} 17. f3 {[%clk 0:01:21.7]} 17... Rae8 {[%clk
0:00:37.4]} 18. Qg2 {[%clk 0:01:18.5]} 18... Be5 {[%clk 0:00:37.6]} 19. Bxe5
{[%clk 0:01:10.3]} 19... Nxe5 {[%clk 0:00:33.5]} 20. Be4 {[%clk 0:01:10.7]}
20... b6 {[%clk 0:00:27.2]} 21. Kh1 {[%clk 0:01:08.4]} 21... Qf6 {[%clk
0:00:26.2]} 22. Rae1 {[%clk 0:01:01]} 22... Ng6 {[%clk 0:00:16.9]} 23. Rg1
{[%clk 0:00:46.9]} 23... Nf4 {[%clk 0:00:14.3]} 24. Qg4 {[%clk 0:00:47.4]} 24...
g6 {[%clk 0:00:12.7]} 25. b3 {[%clk 0:00:41.6]} 25... Kg7 {[%clk 0:00:11]} 26.
c4 {[%clk 0:00:40.6]} 26... h5 {[%clk 0:00:11]} 27. Qg3 {[%clk 0:00:33.9]} 27...
Re5 {[%clk 0:00:10.2]} 28. a4 {[%clk 0:00:20.7]} 28... Rfe8 {[%clk 0:00:09.8]}
29. Rd1 {[%clk 0:00:20.3]} 29... Ne2 {[%clk 0:00:08.6]} 30. Qh3 {[%clk
0:00:16.6]} 30... Nxg1 {[%clk 0:00:08.8]} 31. Rxg1 {[%clk 0:00:17.5]} 31... Rg5
{[%clk 0:00:07.2]} 32. Rd1 {[%clk 0:00:16.3]} 32... Re7 {[%clk 0:00:07.3]} 33.
Rd8 {[%clk 0:00:15.5]} 33... Rxe4 {[%clk 0:00:06.8]} 34. Rg8+ {[%clk 0:00:11]}
34... Kxg8 {[%clk 0:00:06.5]} 35. fxe4 {[%clk 0:00:11.9]} 35... Qa1+ {[%clk
0:00:06.8]} 0-1

[Event "Early-Titled-Tuesday-Blitz-February-20-2024"]
[Site "Chess.com"]
[Date "2024.02.20"]
[Round "1"]
[White "fighter2jz"]
[Black "amylazy"]
[Result "1-0"]
[WhiteElo "2773"]
[BlackElo "2429"]
[TimeControl "180+1"]
[EndTime "8:07:19 PST"]
[Termination "fighter2jz won on time"]

1. e4 {[%clk 0:02:48.1]} 1... c5 {[%clk 0:02:59.4]} 2. Nf3 {[%clk 0:02:47.8]}
2... e6 {[%clk 0:02:59.2]} 3. c4 {[%clk 0:02:42.3]} 3... Nc6 {[%clk 0:02:33.2]}
4. Nc3 {[%clk 0:02:20.8]} 4... d6 {[%clk 0:02:28.3]} 5. d4 {[%clk 0:01:51.8]}
5... cxd4 {[%clk 0:02:25]} 6. Nxd4 {[%clk 0:01:52.7]} 6... Nf6 {[%clk 0:02:24]}
7. Be2 {[%clk 0:01:51.3]} 7... Be7 {[%clk 0:02:22.6]} 8. O-O {[%clk 0:01:51.8]}
8... O-O {[%clk 0:02:21.8]} 9. Be3 {[%clk 0:01:52.5]} 9... Bd7 {[%clk
0:02:20.8]} 10. Qd2 {[%clk 0:01:50.4]} 10... Rc8 {[%clk 0:02:16.4]} 11. f4
{[%clk 0:01:50.3]} 11... Nxd4 {[%clk 0:02:12.5]} 12. Bxd4 {[%clk 0:01:48.6]}
12... Bc6 {[%clk 0:02:13.4]} 13. Qe3 {[%clk 0:01:31.2]} 13... d5 {[%clk
0:02:03]} 14. e5 {[%clk 0:01:13.9]} 14... Ne4 {[%clk 0:02:02.6]} 15. Nxe4 {[%clk
0:01:12]} 15... dxe4 {[%clk 0:02:02.9]} 16. Bxa7 {[%clk 0:01:12.7]} 16... Qa5
{[%clk 0:01:53.6]} 17. Bb6 {[%clk 0:01:12.7]} 17... Qb4 {[%clk 0:01:53.2]} 18.
a3 {[%clk 0:00:55.7]} 18... Qxb2 {[%clk 0:01:47.7]} 19. Rfb1 {[%clk 0:00:54.3]}
19... Qc2 {[%clk 0:01:48]} 20. Rc1 {[%clk 0:00:54.9]} 20... Qa4 {[%clk 0:01:48]}
21. g4 {[%clk 0:00:44.7]} 21... Ra8 {[%clk 0:01:31]} 22. f5 {[%clk 0:00:44.4]}
22... exf5 {[%clk 0:01:25.5]} 23. gxf5 {[%clk 0:00:43.6]} 23... Ra6 {[%clk
0:01:24.6]} 24. Bd4 {[%clk 0:00:32.8]} 24... Rd8 {[%clk 0:01:17.9]} 25. f6
{[%clk 0:00:32.4]} 25... Bf8 {[%clk 0:01:01.5]} 26. e6 {[%clk 0:00:32.5]} 26...
fxe6 {[%clk 0:00:57.6]} 27. fxg7 {[%clk 0:00:32.5]} 27... Be7 {[%clk 0:00:48.7]}
28. Rf1 {[%clk 0:00:32.6]} 28... Qa5 {[%clk 0:00:31.3]} 29. c5 {[%clk
0:00:25.5]} 29... Rxd4 {[%clk 0:00:29]} 30. Qxd4 {[%clk 0:00:25.6]} 30... Ra8
{[%clk 0:00:12.4]} 31. Bc4 {[%clk 0:00:24.8]} 31... Bd5 {[%clk 0:00:06.1]} 32.
Bxd5 {[%clk 0:00:24.1]} 32... exd5 {[%clk 0:00:06.9]} 33. Qxd5+ {[%clk
0:00:24.5]} 33... Kxg7 {[%clk 0:00:07.7]} 34. Qe5+ {[%clk 0:00:22.6]} 1-0

[Event "Early-Titled-Tuesday-Blitz-February-20-2024"]
[Site "Chess.com"]
[Date "2024.02.20"]
[Round "1"]
[White "LiadCuba"]
[Black "Shield12"]
[Result "0-1"]
[WhiteElo "2517"]
[BlackElo "2970"]
[TimeControl "180+1"]
[EndTime "8:07:20 PST"]
[Termination "Shield12 won on time"]

1. d4 {[%clk 0:03:00.9]} 1... Nf6 {[%clk 0:03:00]} 2. c4 {[%clk 0:03:00.6]} 2...
e6 {[%clk 0:03:00.4]} 3. Nc3 {[%clk 0:03:00.7]} 3... Bb4 {[%clk 0:03:00.1]} 4.
f3 {[%clk 0:03:01]} 4... O-O {[%clk 0:02:59.4]} 5. e4 {[%clk 0:02:59.8]} 5... d5
{[%clk 0:02:59.1]} 6. cxd5 {[%clk 0:03:00.7]} 6... exd5 {[%clk 0:03:00]} 7. e5
{[%clk 0:03:01.4]} 7... Nfd7 {[%clk 0:03:00.1]} 8. f4 {[%clk 0:03:01.2]} 8... c5
{[%clk 0:02:57.6]} 9. Be3 {[%clk 0:03:00]} 9... cxd4 {[%clk 0:02:57.2]} 10. Bxd4
{[%clk 0:03:00.9]} 10... Nc6 {[%clk 0:02:57.1]} 11. Nf3 {[%clk 0:02:59.3]} 11...
Nb6 {[%clk 0:02:47]} 12. a3 {[%clk 0:02:52.8]} 12... Nxd4 {[%clk 0:02:41.7]} 13.
Qxd4 {[%clk 0:02:44.6]} 13... Bxc3+ {[%clk 0:02:40.8]} 14. bxc3 {[%clk
0:02:42.3]} 14... Bg4 {[%clk 0:02:41.7]} 15. Bd3 {[%clk 0:02:26.4]} 15... Bxf3
{[%clk 0:02:40.9]} 16. gxf3 {[%clk 0:02:27.3]} 16... Rc8 {[%clk 0:02:33.2]} 17.
O-O {[%clk 0:02:25.6]} 17... Qe7 {[%clk 0:02:27.5]} 18. Kh1 {[%clk 0:02:13.3]}
18... Rc6 {[%clk 0:02:25.1]} 19. Rg1 {[%clk 0:02:09.1]} 19... Rfc8 {[%clk
0:02:23]} 20. f5 {[%clk 0:02:05.6]} 20... f6 {[%clk 0:02:11.9]} 21. Rae1 {[%clk
0:01:55.2]} 21... fxe5 {[%clk 0:02:10.3]} 22. Rxe5 {[%clk 0:01:51.4]} 22... Qf6
{[%clk 0:02:10.2]} 23. Re6 {[%clk 0:00:51.5]} 23... Qxd4 {[%clk 0:02:08.5]} 24.
cxd4 {[%clk 0:00:50.5]} 24... Kf8 {[%clk 0:01:33.2]} 25. Re5 {[%clk 0:00:41.7]}
25... Rc1 {[%clk 0:01:30.2]} 26. f6 {[%clk 0:00:32.3]} 26... Rxg1+ {[%clk
0:01:29.1]} 27. Kxg1 {[%clk 0:00:33.2]} 27... gxf6 {[%clk 0:01:29.7]} 28. Rh5
{[%clk 0:00:33.5]} 28... Rc3 {[%clk 0:01:28.5]} 29. Bxh7 {[%clk 0:00:19.4]}
29... Rxa3 {[%clk 0:01:26.8]} 30. Kf2 {[%clk 0:00:17.6]} 30... a5 {[%clk
0:01:25.8]} 31. Bf5 {[%clk 0:00:14.4]} 31... Nc4 {[%clk 0:00:59.3]} 32. Rh8+
{[%clk 0:00:09.6]} 32... Ke7 {[%clk 0:00:56.2]} 33. Rh7+ {[%clk 0:00:10.5]}
33... Kd6 {[%clk 0:00:55.3]} 34. Rxb7 {[%clk 0:00:11.4]} 34... a4 {[%clk
0:00:54.1]} 35. h4 {[%clk 0:00:09.3]} 35... Ra2+ {[%clk 0:00:49.4]} 36. Kg3
{[%clk 0:00:09.4]} 36... Ne3 {[%clk 0:00:44.8]} 37. Bd3 {[%clk 0:00:08.7]} 37...
Rd2 {[%clk 0:00:41.8]} 38. Bb5 {[%clk 0:00:05.5]} 38... Rxd4 {[%clk 0:00:34.6]}
39. Ra7 {[%clk 0:00:01.9]} 39... Nf5+ {[%clk 0:00:31]} 0-1

[Event "Early-Titled-Tuesday-Blitz-February-20-2024"]
[Site "Chess.com"]
[Date "2024.02.20"]
[Round "1"]
[White "Chesstiger64"]
[Black "Yurovskykh_Oleksandr"]
[Result "1-0"]
[WhiteElo "2344"]
[BlackElo "2652"]
[TimeControl "180+1"]
[EndTime "8:07:20 PST"]
[Termination "Chesstiger64 won on time"]

1. d4 {[%clk 0:02:54]} 1... d5 {[%clk 0:02:56.4]} 2. Nf3 {[%clk 0:02:53.2]} 2...
Nf6 {[%clk 0:02:56]} 3. e3 {[%clk 0:02:53.1]} 3... Bf5 {[%clk 0:02:53.8]} 4. c4
{[%clk 0:02:51.5]} 4... e6 {[%clk 0:02:53.9]} 5. Nc3 {[%clk 0:02:52]} 5... h6
{[%clk 0:02:53]} 6. Be2 {[%clk 0:02:52.2]} 6... c6 {[%clk 0:02:52.7]} 7. a3
{[%clk 0:02:51.2]} 7... Nbd7 {[%clk 0:02:52.9]} 8. b4 {[%clk 0:02:51.4]} 8...
Bd6 {[%clk 0:02:52.8]} 9. Bb2 {[%clk 0:02:49.8]} 9... O-O {[%clk 0:02:52.6]} 10.
O-O {[%clk 0:02:49.1]} 10... Qe7 {[%clk 0:02:52]} 11. Qb3 {[%clk 0:02:46.4]}
11... a6 {[%clk 0:02:42.6]} 12. c5 {[%clk 0:02:42.3]} 12... Bc7 {[%clk
0:02:42.6]} 13. a4 {[%clk 0:02:42.9]} 13... e5 {[%clk 0:02:17.5]} 14. b5 {[%clk
0:02:41.4]} 14... e4 {[%clk 0:01:55.3]} 15. Nd2 {[%clk 0:02:39.7]} 15... a5
{[%clk 0:01:54.2]} 16. b6 {[%clk 0:02:17.7]} 16... Bb8 {[%clk 0:01:54]} 17. Rae1
{[%clk 0:02:10.3]} 17... g6 {[%clk 0:01:39.3]} 18. Bc1 {[%clk 0:02:04]} 18... h5
{[%clk 0:01:34.6]} 19. Qd1 {[%clk 0:02:01.7]} 19... Kg7 {[%clk 0:01:28.4]} 20.
f3 {[%clk 0:02:01.8]} 20... exf3 {[%clk 0:01:24.8]} 21. Bxf3 {[%clk 0:02:01.2]}
21... Ng4 {[%clk 0:01:13.3]} 22. Bxg4 {[%clk 0:01:48]} 22... hxg4 {[%clk
0:01:12.6]} 23. Qe2 {[%clk 0:01:39.5]} 23... Rh8 {[%clk 0:00:56]} 24. g3 {[%clk
0:01:39.4]} 24... Nf6 {[%clk 0:00:42.1]} 25. Qf2 {[%clk 0:01:31]} 25... Rh3
{[%clk 0:00:29.4]} 26. Ne2 {[%clk 0:01:28.3]} 26... Nh7 {[%clk 0:00:14.8]} 27.
Nf4 {[%clk 0:01:26.3]} 27... Bxf4 {[%clk 0:00:14.3]} 28. exf4 {[%clk 0:01:25.7]}
28... Qd7 {[%clk 0:00:12.7]} 29. Re5 {[%clk 0:01:25.3]} 29... Nf6 {[%clk
0:00:12.7]} 30. Rfe1 {[%clk 0:01:23.5]} 30... Rah8 {[%clk 0:00:13]} 31. Re7
{[%clk 0:01:11]} 31... Qc8 {[%clk 0:00:12.7]} 32. Nf1 {[%clk 0:01:05]} 32...
R8h7 {[%clk 0:00:11.9]} 33. R1e2 {[%clk 0:00:56.3]} 33... Ne4 {[%clk 0:00:08.8]}
34. Qg2 {[%clk 0:00:47.1]} 34... Kf6 {[%clk 0:00:05.7]} 35. Rc7 {[%clk
0:00:46.9]} 35... Qb8 {[%clk 0:00:06]} 36. Nd2 {[%clk 0:00:45.2]} 36... Rh8
{[%clk 0:00:05.8]} 37. Nxe4+ {[%clk 0:00:44.7]} 37... dxe4 {[%clk 0:00:05.7]}
38. d5 {[%clk 0:00:39.8]} 38... cxd5 {[%clk 0:00:05.7]} 39. Bb2+ {[%clk
0:00:39.5]} 39... Ke6 {[%clk 0:00:06.2]} 40. Qf2 {[%clk 0:00:35.4]} 40... Rxh2
{[%clk 0:00:02.9]} 41. Qd4 {[%clk 0:00:33.6]} 41... Rh1+ {[%clk 0:00:01.3]} 42.
Kf2 {[%clk 0:00:33.8]} 42... R8h2+ {[%clk 0:00:02.2]} 43. Ke3 {[%clk 0:00:34]}
43... Rxe2+ {[%clk 0:00:02.8]} 44. Kxe2 {[%clk 0:00:34]} 44... Rh2+ {[%clk
0:00:03]} 45. Ke3 {[%clk 0:00:34.3]} 1-0

[Event "Early-Titled-Tuesday-Blitz-February-20-2024"]
[Site "Chess.com"]
[Date "2024.02.20"]
[Round "1"]
[White "Muracle"]
[Black "rezamahdavi2008"]
[Result "1/2-1/2"]
[WhiteElo "2479"]
[BlackElo "2841"]
[TimeControl "180+1"]
[EndTime "8:07:21 PST"]
[Termination "Game drawn - insufficient material"]

1. d4 {[%clk 0:02:52.7]} 1... Nf6 {[%clk 0:02:58.6]} 2. Nf3 {[%clk 0:02:53.1]}
2... e6 {[%clk 0:02:58.9]} 3. g3 {[%clk 0:02:52.9]} 3... d5 {[%clk 0:02:57.2]}
4. Bg2 {[%clk 0:02:53.2]} 4... c5 {[%clk 0:02:57.9]} 5. O-O {[%clk 0:02:53.7]}
5... cxd4 {[%clk 0:02:56.3]} 6. Nxd4 {[%clk 0:02:53.3]} 6... e5 {[%clk
0:02:46.1]} 7. Nb3 {[%clk 0:02:49.8]} 7... a5 {[%clk 0:02:45.9]} 8. Bg5 {[%clk
0:02:45.8]} 8... a4 {[%clk 0:02:44.4]} 9. N3d2 {[%clk 0:02:44.4]} 9... Be7
{[%clk 0:02:40.1]} 10. c4 {[%clk 0:02:40.9]} 10... d4 {[%clk 0:02:37.5]} 11. e3
{[%clk 0:02:32.2]} 11... O-O {[%clk 0:02:35.8]} 12. exd4 {[%clk 0:02:32]} 12...
exd4 {[%clk 0:02:36.7]} 13. Na3 {[%clk 0:02:29.3]} 13... Nc6 {[%clk 0:02:32.9]}
14. Nb5 {[%clk 0:02:26.6]} 14... Be6 {[%clk 0:02:32.3]} 15. Re1 {[%clk 0:02:23]}
15... h6 {[%clk 0:02:30.4]} 16. Bxf6 {[%clk 0:02:18.6]} 16... Bxf6 {[%clk
0:02:31.3]} 17. Ne4 {[%clk 0:02:18.3]} 17... Be7 {[%clk 0:02:30.9]} 18. b3
{[%clk 0:02:15.6]} 18... axb3 {[%clk 0:02:30.2]} 19. axb3 {[%clk 0:02:16.5]}
19... Rxa1 {[%clk 0:02:30.7]} 20. Qxa1 {[%clk 0:02:16.8]} 20... Qd7 {[%clk
0:02:23.2]} 21. Rd1 {[%clk 0:02:16.2]} 21... Rd8 {[%clk 0:02:22.5]} 22. Qb2
{[%clk 0:02:06.3]} 22... f5 {[%clk 0:02:17.5]} 23. Nd2 {[%clk 0:02:03]} 23...
Bf6 {[%clk 0:02:18.1]} 24. Nf3 {[%clk 0:02:00.1]} 24... Bf7 {[%clk 0:02:10.1]}
25. Qd2 {[%clk 0:01:57.9]} 25... b6 {[%clk 0:02:05.9]} 26. Qf4 {[%clk
0:01:56.3]} 26... g5 {[%clk 0:02:02.8]} 27. Qc7 {[%clk 0:01:54.4]} 27... Qxc7
{[%clk 0:02:01]} 28. Nxc7 {[%clk 0:01:55.3]} 28... Rd7 {[%clk 0:02:01.3]} 29.
Nd5 {[%clk 0:01:53.3]} 29... Kg7 {[%clk 0:01:54]} 30. Nxf6 {[%clk 0:01:42.5]}
30... Kxf6 {[%clk 0:01:54.9]} 31. Nxg5 {[%clk 0:01:42.6]} 31... hxg5 {[%clk
0:01:51.1]} 32. Bxc6 {[%clk 0:01:43]} 32... Rd6 {[%clk 0:01:39.7]} 33. Bd5
{[%clk 0:01:41.1]} 33... Bxd5 {[%clk 0:01:27.4]} 34. Rxd4 {[%clk 0:01:41.2]}
34... Ke5 {[%clk 0:01:28.2]} 35. Rxd5+ {[%clk 0:01:40.7]} 35... Rxd5 {[%clk
0:01:28.8]} 36. cxd5 {[%clk 0:01:41.6]} 36... Kxd5 {[%clk 0:01:29.7]} 37. Kf1
{[%clk 0:01:29.8]} 37... g4 {[%clk 0:01:27.8]} 38. Ke2 {[%clk 0:01:30.2]} 38...
Kd4 {[%clk 0:01:27.2]} 39. f3 {[%clk 0:01:12.7]} 39... Kc3 {[%clk 0:01:02.4]}
40. fxg4 {[%clk 0:01:12.2]} 40... fxg4 {[%clk 0:01:03.3]} 41. Ke3 {[%clk
0:01:12.5]} 41... Kxb3 {[%clk 0:01:02.1]} 42. Kf4 {[%clk 0:01:13.1]} 42... Kc4
{[%clk 0:01:00.7]} 43. Kxg4 {[%clk 0:01:13.7]} 43... b5 {[%clk 0:01:01.2]} 44.
h4 {[%clk 0:01:14.3]} 44... b4 {[%clk 0:00:59.3]} 45. h5 {[%clk 0:01:14.8]}
45... b3 {[%clk 0:01:00.2]} 46. h6 {[%clk 0:01:15.2]} 46... b2 {[%clk 0:00:58]}
47. h7 {[%clk 0:01:15.9]} 47... b1=Q {[%clk 0:00:58.6]} 48. h8=Q {[%clk
0:01:16.4]} 48... Qe4+ {[%clk 0:00:55]} 49. Kg5 {[%clk 0:01:13.3]} 49... Qe3+
{[%clk 0:00:55.3]} 50. Kh4 {[%clk 0:01:11.8]} 50... Qe4+ {[%clk 0:00:55]} 51.
Kg5 {[%clk 0:01:09.9]} 51... Qe3+ {[%clk 0:00:55.6]} 52. Kf5 {[%clk 0:00:51.2]}
52... Qf3+ {[%clk 0:00:51.1]} 53. Ke6 {[%clk 0:00:49.6]} 53... Qxg3 {[%clk
0:00:46.7]} 54. Qc8+ {[%clk 0:00:49.3]} 54... Kb4 {[%clk 0:00:42.1]} 55. Qb7+
{[%clk 0:00:48.6]} 55... Kc4 {[%clk 0:00:39.3]} 56. Qc6+ {[%clk 0:00:47.5]}
56... Kb3 {[%clk 0:00:38.7]} 57. Qb5+ {[%clk 0:00:46.9]} 57... Ka3 {[%clk
0:00:38.3]} 58. Qc5+ {[%clk 0:00:45.9]} 58... Ka4 {[%clk 0:00:38.1]} 59. Kd7
{[%clk 0:00:44.3]} 59... Qg7+ {[%clk 0:00:37.2]} 60. Kc6 {[%clk 0:00:44.9]}
60... Qg6+ {[%clk 0:00:36.8]} 61. Kb7 {[%clk 0:00:45.4]} 61... Qf7+ {[%clk
0:00:36.8]} 62. Kb6 {[%clk 0:00:45]} 62... Qe6+ {[%clk 0:00:37]} 63. Qc6+ {[%clk
0:00:45.6]} 63... Qxc6+ {[%clk 0:00:36.8]} 64. Kxc6 {[%clk 0:00:46.5]} 1/2-1/2

[Event "Early-Titled-Tuesday-Blitz-February-20-2024"]
[Site "Chess.com"]
[Date "2024.02.20"]
[Round "1"]
[White "JonSnowNW1"]
[Black "Flameboard08"]
[Result "1-0"]
[WhiteElo "2441"]
[BlackElo "2715"]
[TimeControl "180+1"]
[EndTime "8:07:21 PST"]
[Termination "JonSnowNW1 won on time"]

1. c4 {[%clk 0:03:00.9]} 1... b5 {[%clk 0:02:59.7]} 2. b3 {[%clk 0:03:00.1]}
2... bxc4 {[%clk 0:02:58.7]} 3. bxc4 {[%clk 0:03:01]} 3... c5 {[%clk 0:02:58.5]}
4. Nc3 {[%clk 0:03:00.2]} 4... Nc6 {[%clk 0:02:59]} 5. g3 {[%clk 0:02:57.7]}
5... e6 {[%clk 0:02:52]} 6. Bg2 {[%clk 0:02:57.1]} 6... Nge7 {[%clk 0:02:52.6]}
7. Nf3 {[%clk 0:02:49.6]} 7... g6 {[%clk 0:02:52.1]} 8. Ne4 {[%clk 0:02:47.4]}
8... Nf5 {[%clk 0:02:44.8]} 9. Bb2 {[%clk 0:02:45.9]} 9... Nfd4 {[%clk
0:02:38.9]} 10. e3 {[%clk 0:02:33.5]} 10... Nxf3+ {[%clk 0:02:38.1]} 11. Qxf3
{[%clk 0:02:31.4]} 11... e5 {[%clk 0:02:30.1]} 12. Nf6+ {[%clk 0:02:23.4]} 12...
Ke7 {[%clk 0:02:30.2]} 13. Ba3 {[%clk 0:01:52]} 13... Qa5 {[%clk 0:02:15.6]} 14.
Nd5+ {[%clk 0:01:50.9]} 14... Ke8 {[%clk 0:02:14.6]} 15. Qf6 {[%clk 0:01:49.7]}
15... Rg8 {[%clk 0:02:06.6]} 16. Bb2 {[%clk 0:01:42.9]} 16... d6 {[%clk
0:01:52.8]} 17. Qh4 {[%clk 0:01:34.2]} 17... Bg7 {[%clk 0:01:35]} 18. Bc3 {[%clk
0:00:57.4]} 18... Qd8 {[%clk 0:01:23.6]} 19. Qxd8+ {[%clk 0:00:57.1]} 19... Kxd8
{[%clk 0:01:22]} 20. Rb1 {[%clk 0:00:42]} 20... f5 {[%clk 0:00:35.6]} 21. Ne7
{[%clk 0:00:32.7]} 21... Kxe7 {[%clk 0:00:27.3]} 22. Bxc6 {[%clk 0:00:31.8]}
22... Be6 {[%clk 0:00:18]} 23. Bxa8 {[%clk 0:00:30.6]} 23... Rxa8 {[%clk
0:00:18.9]} 24. Rb7+ {[%clk 0:00:29.9]} 24... Kf8 {[%clk 0:00:16.9]} 25. d3
{[%clk 0:00:30.1]} 25... d5 {[%clk 0:00:14.5]} 26. O-O {[%clk 0:00:21.2]} 26...
dxc4 {[%clk 0:00:14.2]} 27. dxc4 {[%clk 0:00:22.1]} 27... Bxc4 {[%clk
0:00:14.8]} 28. Rd1 {[%clk 0:00:22.4]} 28... Bxa2 {[%clk 0:00:06.6]} 29. Rdd7
{[%clk 0:00:22]} 29... Bf6 {[%clk 0:00:07.1]} 30. Rxa7 {[%clk 0:00:17.2]} 30...
Rb8 {[%clk 0:00:05.5]} 31. Rxa2 {[%clk 0:00:16.2]} 31... h5 {[%clk 0:00:02.5]}
32. Ra6 {[%clk 0:00:15.9]} 32... Be7 {[%clk 0:00:01.6]} 33. Bxe5 {[%clk
0:00:15.8]} 1-0